bitfinex/quotes_BTCUSD_20240629
["timestamp","ask_amount","ask_price","bid_price","bid_amount"]
[1719694402452,0.10131073,61124.0,61123.0,0.001024]
[1719694402676,0.10131073,61124.0,61123.0,0.002024]
[1719694404301,0.10131058,61124.0,61123.0,0.002024]
[1719694407471,0.10131071,61124.0,61123.0,0.002024]
[1719694408689,0.02461071,61124.0,61123.0,0.002024]
[1719694408926,0.01359747,61124.0,61123.0,0.111224]
[1719694409087,0.09029747,61124.0,61123.0,0.111224]
[1719694409513,0.10130977,61124.0,61123.0,0.111224]
[1719694410324,0.0877123,61124.0,61123.0,0.111224]
[1719694410519,0.10130977,61124.0,61123.0,0.111224]
[1719694410920,0.0877123,61124.0,61123.0,0.111224]
[1719694411122,0.10130982,61124.0,61123.0,0.111224]
[1719694413545,0.0877123,61124.0,61123.0,0.111224]
[1719694413743,0.10130967,61124.0,61123.0,0.111224]
[1719694416324,0.10130734,61124.0,61123.0,0.111224]
[1719694416989,0.10130727,61124.0,61123.0,0.111224]
[1719694420163,0.10130702,61124.0,61123.0,0.111224]
[1719694422464,0.10230702,61124.0,61123.0,0.110224]
[1719694423286,0.10330701,61124.0,61123.0,0.110224]
[1719694423874,0.10330702,61124.0,61123.0,0.110224]
[1719694425440,0.10230702,61124.0,61123.0,0.110224]
[1719694425853,0.10330702,61124.0,61123.0,0.110224]
[1719694426051,0.10230702,61124.0,61123.0,0.110224]
[1719694426480,0.10230738,61124.0,61123.0,0.110224]
[1719694426690,0.10130738,61124.0,61123.0,0.110224]
[1719694426856,0.10130738,61124.0,61123.0,0.118224]
[1719694427636,0.10130738,61124.0,61123.0,0.126224]
[1719694429472,0.0877123,61124.0,61123.0,0.126224]
[1719694429714,0.10130727,61124.0,61123.0,0.126224]
[1719694432781,0.10130728,61124.0,61123.0,0.126224]
[1719694435820,9.286e-05,61132.0,61126.0,0.02]
[1719694436022,0.0767,61127.0,61126.0,0.02]
[1719694436225,0.09029568,61127.0,61126.0,0.02]
[1719694436445,0.0767,61127.0,61126.0,0.02]
[1719694436704,0.09029555,61127.0,61126.0,0.02]
[1719694436841,0.0767,61127.0,61126.0,0.02]
[1719694437768,0.0767,61127.0,61126.0,0.004]
[1719694439307,0.0767,61127.0,61125.0,0.02]
[1719694439511,0.0767,61127.0,61126.0,0.004]
[1719694439715,0.0777,61127.0,61126.0,0.004]
[1719694440135,0.0777,61127.0,61126.0,0.02039506]
[1719694440776,0.0777,61127.0,61126.0,0.01639506]
[1719694441180,0.0787,61127.0,61126.0,0.01639506]
[1719694443861,0.0767,61127.0,61126.0,0.01639506]
[1719694444221,0.0787,61127.0,61126.0,0.01639506]
[1719694444619,0.0777,61127.0,61126.0,0.01639506]
[1719694444839,0.0777,61127.0,61123.0,0.021024]
[1719694445035,0.0767,61124.0,61123.0,0.03741906]
[1719694447018,0.0767,61124.0,61123.0,0.02141906]
[1719694447301,0.0767,61124.0,61123.0,0.004]
[1719694447302,0.0779,61124.0,61123.0,0.004]
[1719694447834,0.0779,61124.0,61123.0,0.008]
[1719694448022,0.0767,61124.0,61123.0,0.008]
[1719694448229,0.0767,61124.0,61123.0,0.004]
[1719694448669,0.0777,61124.0,61123.0,0.004]
[1719694449072,0.0777,61124.0,61122.0,0.01639506]
[1719694449491,0.0787,61124.0,61122.0,0.01639506]
[1719694449861,0.002,61124.0,61123.0,0.2214]
[1719694450078,0.0777,61124.0,61123.0,0.2214]
[1719694450933,0.0777,61124.0,61123.0,0.2215]
[1719694451251,0.0797,61124.0,61123.0,0.2215]
[1719694451671,0.0787,61124.0,61123.0,0.2215]
[1719694451864,0.0797,61124.0,61123.0,0.2215]
[1719694452205,0.0777,61124.0,61123.0,0.2215]
[1719694452606,0.0777,61124.0,61123.0,0.2245]
[1719694453037,0.0767,61124.0,61123.0,0.2245]
[1719694453476,0.0767,61124.0,61123.0,0.2275]
[1719694454116,0.0767,61124.0,61123.0,0.228424]
[1719694454718,0.01723506,61129.0,61128.0,0.02]
[1719694454919,0.09393506,61129.0,61128.0,0.02]
[1719694456091,0.09393506,61129.0,61127.0,0.02]
[1719694456317,0.01823506,61129.0,61128.0,0.08130346]
[1719694456471,0.09593506,61129.0,61128.0,0.08130346]
[1719694456674,0.09593506,61129.0,61128.0,0.10130346]
[1719694456851,0.09493506,61129.0,61128.0,0.10130346]
[1719694457054,0.09393506,61129.0,61128.0,0.10130346]
[1719694457256,0.09493506,61129.0,61128.0,0.10130346]
[1719694457557,0.09593506,61129.0,61128.0,0.10130346]
[1719694457753,0.09493506,61129.0,61128.0,0.10130346]
[1719694458188,0.09593506,61129.0,61128.0,0.10130346]
[1719694458788,0.09493506,61129.0,61128.0,0.10130346]
[1719694459029,0.09593506,61129.0,61128.0,0.10130346]
[1719694461714,0.07954,61129.0,61128.0,0.10130346]
[1719694464712,0.07954,61129.0,61128.0,0.08130346]
[1719694468556,0.07954,61129.0,61128.0,0.10130346]
[1719694469320,0.07954,61129.0,61128.0,0.08130346]
[1719694471536,0.07954,61129.0,61128.0,0.10130346]
[1719694478369,0.07954,61129.0,61128.0,0.08130346]
[1719694480164,0.07954,61129.0,61128.0,0.10130346]
[1719694480832,0.07954,61129.0,61125.0,0.2069]
[1719694481041,0.07954,61129.0,61125.0,0.01639506]
[1719694481042,0.01923506,61129.0,61125.0,0.01639506]
[1719694481240,0.0767,61126.0,61125.0,0.01639506]
[1719694483439,0.0767,61126.0,61125.0,0.01739506]
[1719694483673,0.0767,61126.0,61125.0,0.01639506]
[1719694484007,0.0777,61126.0,61125.0,0.01639506]
[1719694484454,0.0787,61126.0,61125.0,0.01639506]
[1719694484854,0.0777,61126.0,61125.0,0.01639506]
[1719694486530,0.0777,61126.0,61123.0,0.118124]
[1719694486755,0.09409506,61126.0,61123.0,0.13451906]
[1719694486950,0.09509506,61126.0,61123.0,0.13451906]
[1719694487596,0.09409506,61126.0,61123.0,0.13451906]
[1719694487805,0.09309506,61126.0,61123.0,0.13451906]
[1719694487971,0.09409506,61126.0,61123.0,0.13451906]
[1719694488999,0.09409506,61126.0,61123.0,0.01741906]
[1719694489206,0.0777,61126.0,61123.0,0.001024]
[1719694489606,0.0787,61126.0,61123.0,0.001024]
[1719694497402,0.0787,61126.0,61123.0,0.021024]
[1719694497607,0.0787,61126.0,61123.0,0.001024]
[1719694498622,0.0787,61126.0,61123.0,0.021024]
[1719694499443,0.0777,61126.0,61123.0,0.021024]
[1719694499606,0.0787,61126.0,61123.0,0.021024]
[1719694499805,0.0777,61126.0,61123.0,0.021024]
[1719694500058,0.0787,61126.0,61123.0,0.021024]
[1719694500370,0.0787,61126.0,61123.0,0.001024]
[1719694500578,0.0787,61126.0,61123.0,0.021024]
[1719694500791,0.0797,61126.0,61123.0,0.021024]
[1719694500985,0.0797,61126.0,61123.0,0.001024]
[1719694501287,0.0787,61126.0,61123.0,0.021024]
[1719694501489,0.0797,61126.0,61123.0,0.021024]
[1719694501697,0.0797,61126.0,61123.0,0.001024]
[1719694502428,0.0797,61126.0,61123.0,0.021024]
[1719694503558,0.0797,61126.0,61123.0,0.001024]
[1719694504976,0.0797,61126.0,61124.0,0.1138]
[1719694505799,0.0787,61126.0,61124.0,0.1138]
[1719694506009,0.0767,61126.0,61124.0,0.1138]
[1719694506213,0.0777,61126.0,61124.0,0.1138]
[1719694506405,0.0787,61126.0,61124.0,0.1138]
[1719694507009,0.0787,61126.0,61123.0,0.001024]
[1719694508056,0.0777,61126.0,61123.0,0.001024]
[1719694508424,0.0787,61126.0,61123.0,0.001024]
[1719694509608,0.0767,61124.0,61123.0,0.001024]
[1719694511208,0.0777,61124.0,61123.0,0.001024]
[1719694511419,0.0787,61124.0,61123.0,0.001024]
[1719694517431,0.0787,61124.0,61123.0,0.021024]
[1719694522398,0.12179044,61124.0,61123.0,0.021024]
[1719694527211,0.002,61124.0,61123.0,0.021024]
[1719694527352,0.0787,61124.0,61123.0,0.021024]
[1719694527541,0.0787,61124.0,61123.0,0.213824]
[1719694549000,0.67399904,61222.0,61123.0,0.213824]
[1719694549233,0.0767,61124.0,61123.0,0.213824]
[1719694549633,0.07754,61124.0,61123.0,0.213824]
[1719694550314,0.07754,61124.0,61123.0,0.214824]
[1719694550523,0.07754,61124.0,61123.0,0.194824]
[1719694550756,0.07754,61124.0,61123.0,0.193824]
[1719694551188,0.07854,61124.0,61123.0,0.213824]
[1719694551874,0.07854,61124.0,61123.0,0.214824]
[1719694552298,0.07854,61124.0,61123.0,0.213824]
[1719694554389,0.07854,61124.0,61123.0,0.193824]
[1719694554618,0.07854,61124.0,61123.0,0.213824]
[1719694556523,0.07854,61124.0,61123.0,0.193824]
[1719694556524,0.084675,61124.0,61123.0,0.193824]
[1719694558492,0.084675,61124.0,61123.0,0.213824]
[1719694564092,0.12757492,61124.0,61123.0,0.213824]
[1719694572383,0.05087492,61124.0,61123.0,0.213824]
[1719694572621,0.12757492,61124.0,61123.0,0.213824]
[1719694576250,0.05087492,61124.0,61123.0,0.213824]
[1719694576495,0.12757492,61124.0,61123.0,0.213824]
[1719694577496,0.084675,61124.0,61123.0,0.213824]
[1719694585974,0.083675,61124.0,61123.0,0.213824]
[1719694586835,0.006975,61124.0,61123.0,0.223824]
[1719694587057,0.00084,61132.0,61131.0,0.01]
[1719694587307,0.00084,61132.0,61131.0,0.20316982]
[1719694587308,0.07754,61132.0,61131.0,0.20316982]
[1719694587511,0.07754,61132.0,61131.0,0.31199852]
[1719694587713,0.07754,61132.0,61131.0,0.36452551]
[1719694588337,0.07754,61132.0,61131.0,0.36852551]
[1719694588563,0.07754,61132.0,61131.0,0.37352551]
[1719694588976,0.07754,61132.0,61131.0,0.38352551]
[1719694590288,0.07754,61132.0,61131.0,0.33099852]
[1719694592395,0.07754,61132.0,61131.0,0.31460346]
[1719694600097,0.07754,61132.0,61131.0,0.32460346]
[1719694601509,0.07754,61132.0,61131.0,0.68694244]
[1719694602234,0.07754,61132.0,61131.0,0.66794244]
[1719694602435,0.07754,61132.0,61131.0,0.7325432]
[1719694603123,0.07754,61132.0,61131.0,0.7235432]
[1719694603279,0.07754,61132.0,61131.0,0.7365432]
[1719694603925,0.07754,61132.0,61131.0,0.7265432]
[1719694604142,0.07754,61132.0,61131.0,0.7405432]
[1719694606504,0.00084,61132.0,61131.0,0.7405432]
[1719694606706,0.07754,61132.0,61131.0,0.7405432]
[1719694613595,0.00084,61132.0,61131.0,1.0405432]
[1719694614412,0.00084,61132.0,61131.0,1.0265432]
[1719694614583,0.00084,61132.0,61131.0,1.0405432]
[1719694615011,0.00084,61132.0,61131.0,1.0265432]
[1719694615225,0.00084,61132.0,61131.0,1.0405432]
[1719694615671,0.00084,61132.0,61131.0,1.0275432]
[1719694616084,0.00084,61132.0,61131.0,1.0415432]
[1719694616506,0.00084,61132.0,61131.0,1.0275432]
[1719694616708,0.00084,61132.0,61131.0,1.0415432]
[1719694617671,0.00084,61132.0,61131.0,1.0275432]
[1719694617912,0.00084,61132.0,61131.0,1.0135432]
[1719694618401,0.00084,61132.0,61131.0,1.0275432]
[1719694618880,0.00084,61132.0,61131.0,0.8275432]
[1719694619107,0.00084,61132.0,61131.0,0.8415432]
[1719694621951,0.00084,61132.0,61131.0,0.84150231]
[1719694624228,0.00084,61132.0,61131.0,0.58590155]
[1719694624229,0.07754,61132.0,61131.0,0.58590155]
[1719694624636,0.07754,61132.0,61131.0,0.39160155]
[1719694638053,0.07754,61132.0,61131.0,0.11526257]
[1719694638465,0.07754,61132.0,61131.0,0.11926257]
[1719694638927,0.07754,61132.0,61131.0,0.10126257]
[1719694639179,0.07754,61132.0,61131.0,0.10526257]
[1719694641188,0.03799621,61150.0,61135.0,0.08340832]
[1719694641419,0.24992557,61146.0,61138.0,0.08130346]
[1719694641652,0.0767,61139.0,61138.0,0.08130346]
[1719694641883,0.09309506,61139.0,61138.0,0.08130346]
[1719694642349,0.09309506,61139.0,61137.0,0.08340832]
[1719694643745,0.09309506,61139.0,61138.0,0.08340832]
[1719694643961,0.09309506,61139.0,61137.0,0.08340832]
[1719694644377,0.09409506,61139.0,61137.0,0.08340832]
[1719694644576,0.09409506,61139.0,61138.0,0.0001]
[1719694645439,0.09509506,61139.0,61138.0,0.0001]
[1719694645982,0.09609506,61139.0,61138.0,0.0001]
[1719694646183,0.09693506,61139.0,61138.0,0.0001]
[1719694646782,0.08054,61139.0,61138.0,0.0001]
[1719694649294,0.08054,61139.0,61138.0,0.08350832]
[1719694649515,0.08054,61139.0,61138.0,0.0001]
[1719694652019,0.00384,61139.0,61138.0,0.18477089]
[1719694652224,0.08054,61139.0,61138.0,0.18477089]
[1719694653886,0.11914651,61139.0,61138.0,0.18477089]
[1719694654315,0.04244651,61139.0,61138.0,0.18477089]
[1719694654517,0.11914651,61139.0,61138.0,0.18477089]
[1719694655138,0.11814651,61139.0,61138.0,0.18477089]
[1719694655343,0.11614651,61139.0,61138.0,0.18477089]
[1719694655549,0.11714651,61139.0,61138.0,0.18477089]
[1719694655802,0.11714651,61139.0,61138.0,0.18677089]
[1719694656004,0.11714651,61139.0,61138.0,0.18477089]
[1719694656454,0.11814651,61139.0,61138.0,0.18477089]
[1719694656966,0.11714651,61139.0,61138.0,0.18477089]
[1719694657191,0.11814651,61139.0,61138.0,0.18477089]
[1719694659999,0.04144651,61139.0,61138.0,0.18477089]
[1719694660212,0.11814651,61139.0,61138.0,0.18477089]
[1719694660624,0.11814651,61139.0,61138.0,0.28797089]
[1719694663482,0.11714651,61139.0,61138.0,0.28797089]
[1719694663930,0.11814651,61139.0,61138.0,0.28797089]
[1719694664135,0.11714651,61139.0,61138.0,0.28797089]
[1719694664331,0.11614651,61139.0,61138.0,0.28797089]
[1719694664659,0.11714651,61139.0,61138.0,0.29397089]
[1719694664898,0.11614651,61139.0,61138.0,0.29397089]
[1719694665110,0.11614651,61139.0,61138.0,0.29997089]
[1719694666543,0.11614651,61139.0,61138.0,0.29397089]
[1719694666889,0.11614651,61139.0,61138.0,0.29997089]
[1719694667297,0.07754,61139.0,61138.0,0.29997089]
[1719694667501,0.07754,61139.0,61138.0,0.38867089]
[1719694667713,0.07754,61139.0,61138.0,0.42753798]
[1719694672124,0.07754,61139.0,61138.0,0.38867089]
[1719694673634,0.07754,61139.0,61138.0,0.30736743]
[1719694675017,0.07754,61139.0,61138.0,0.30136743]
[1719694675227,0.07754,61139.0,61138.0,0.29536743]
[1719694675438,0.07754,61139.0,61138.0,0.30136743]
[1719694676066,0.07754,61139.0,61138.0,0.21266743]
[1719694678024,0.07754,61139.0,61138.0,0.21359143]
[1719694679336,0.07754,61139.0,61138.0,0.11039143]
[1719694680596,0.07754,61139.0,61138.0,0.10739143]
[1719694680804,0.07754,61139.0,61138.0,0.10439143]
[1719694681263,0.07854,61139.0,61138.0,0.001024]
[1719694681469,0.07854,61139.0,61138.0,0.00094596]
[1719694681890,0.07754,61139.0,61138.0,0.00094596]
[1719694682330,0.07854,61139.0,61138.0,0.00094596]
[1719694682529,0.07754,61139.0,61138.0,0.00094596]
[1719694682734,0.07754,61139.0,61138.0,0.00294596]
[1719694682947,0.08906237,61139.0,61138.0,0.00294596]
[1719694683159,0.11206237,61139.0,61134.0,0.08340832]
[1719694683368,0.11206237,61139.0,61138.0,0.0001]
[1719694683369,0.05275743,61139.0,61138.0,0.0001]
[1719694683578,0.12945743,61139.0,61138.0,0.0001]
[1719694683999,0.12845743,61139.0,61138.0,0.0001]
[1719694684207,0.12945743,61139.0,61138.0,0.0001]
[1719694685279,0.13345743,61139.0,61138.0,0.0021]
[1719694688771,0.11706237,61139.0,61138.0,0.0021]
[1719694693066,0.10554,61139.0,61138.0,0.0021]
[1719694710663,0.10554,61139.0,61138.0,0.003024]
[1719694737814,0.02884,61139.0,61138.0,0.16663232]
[1719694737981,0.10554,61139.0,61138.0,0.24474166]
[1719694738386,0.10554,61139.0,61138.0,0.16133334]
[1719694739589,0.10554,61139.0,61138.0,0.16143334]
[1719694741326,0.59848,61144.0,61138.0,0.16143334]
[1719694741327,0.48783673,61144.0,61138.0,0.24484166]
[1719694741467,0.18533898,61143.0,61139.0,0.1008]
[1719694741669,0.0767,61140.0,61139.0,0.08308793]
[1719694742473,0.0767,61140.0,61139.0,0.16649625]
[1719694743805,0.08455087,61140.0,61139.0,0.16849625]
[1719694744821,0.08455087,61140.0,61139.0,0.08508793]
[1719694754259,0.08455087,61140.0,61139.0,0.08069969]
[1719694756272,0.00785087,61140.0,61139.0,0.17410801]
[1719694756484,0.005,61140.0,61139.0,0.28622957]
[1719694756700,0.0817,61140.0,61139.0,0.28622957]
[1719694757117,0.0817,61140.0,61139.0,0.26166712]
[1719694757730,0.0817,61140.0,61139.0,0.26066712]
[1719694757942,0.0817,61140.0,61139.0,0.26166712]
[1719694758148,0.00084,61150.0,61149.0,0.08340832]
[1719694758352,0.00084,61150.0,61149.0,0.26460832]
[1719694758353,0.09393506,61150.0,61149.0,0.26460832]
[1719694758945,0.09393506,61150.0,61149.0,0.28456743]
[1719694759289,0.09393506,61150.0,61149.0,0.27456743]
[1719694759515,0.09393506,61150.0,61149.0,0.28456743]
[1719694760068,0.09493506,61150.0,61149.0,0.28556743]
[1719694760877,0.14103844,61150.0,61149.0,0.28556743]
[1719694761206,0.14103844,61150.0,61149.0,0.28656743]
[1719694761411,0.14003844,61150.0,61149.0,0.28456743]
[1719694761842,0.06333844,61150.0,61149.0,0.28456743]
[1719694762065,0.12364338,61150.0,61149.0,0.28456743]
[1719694764681,0.12364338,61150.0,61149.0,0.28566743]
[1719694765204,0.12364338,61150.0,61149.0,0.28666743]
[1719694766728,0.04694338,61150.0,61149.0,0.28666743]
[1719694766936,0.12364338,61150.0,61149.0,0.28666743]
[1719694772189,0.12144338,61150.0,61149.0,0.28666743]
[1719694776677,0.12228338,61150.0,61149.0,0.28666743]
[1719694780287,0.12228338,61150.0,61149.0,0.1833]
[1719694780492,0.12228338,61150.0,61149.0,0.0021]
[1719694780921,0.12228338,61150.0,61149.0,0.08550832]
[1719694781159,0.12228338,61150.0,61149.0,0.18950832]
[1719694781415,0.12228338,61150.0,61149.0,0.0021]
[1719694781664,0.12228338,61150.0,61149.0,0.08550832]
[1719694781902,0.12228338,61150.0,61149.0,0.0021]
[1719694789914,0.12228338,61150.0,61149.0,0.08550832]
[1719694790131,0.12228338,61150.0,61149.0,0.10546743]
[1719694790329,0.12228338,61150.0,61149.0,0.0021]
[1719694795695,0.12228338,61150.0,61149.0,0.0011]
[1719694795915,0.12228338,61150.0,61149.0,0.0001]
[1719694799661,0.14687672,61150.0,61149.0,0.0001]
[1719694800487,0.12228338,61150.0,61149.0,0.0001]
[1719694800683,0.28462236,61150.0,61149.0,0.0001]
[1719694800941,0.30762236,61150.0,61149.0,0.0001]
[1719694803736,0.40610236,61150.0,61149.0,0.0001]
[1719694803935,0.40610236,61150.0,61149.0,3.827e-05]
[1719694804137,0.51088876,61150.0,61140.0,0.000924]
[1719694804316,0.0767,61141.0,61140.0,0.000924]
[1719694804515,0.09309506,61141.0,61140.0,0.000924]
[1719694804722,0.11609506,61141.0,61140.0,0.000924]
[1719694805384,0.11609506,61141.0,61140.0,0.002924]
[1719694805615,0.11609506,61141.0,61140.0,0.001924]
[1719694805845,0.11609506,61141.0,61140.0,0.002924]
[1719694806085,0.11609506,61141.0,61140.0,0.001924]
[1719694806497,0.11599506,61141.0,61140.0,0.000924]
[1719694806712,0.11609506,61141.0,61140.0,0.000924]
[1719694809475,0.0997,61141.0,61140.0,0.000924]
[1719694810924,0.0997,61141.0,61140.0,0.001024]
[1719694814386,0.26203898,61141.0,61140.0,0.001024]
[1719694817586,0.30540043,61141.0,61140.0,0.001024]
[1719694827578,0.30540043,61141.0,61140.0,0.001024]
[1719694838047,0.30540043,61141.0,61140.0,0.082124]
[1719694838195,0.30540043,61141.0,61140.0,0.06426528]
[1719694839600,0.30540043,61141.0,61140.0,0.06518928]
[1719694839812,0.30624043,61141.0,61140.0,0.06518928]
[1719694841571,0.00928668,61141.0,61140.0,0.06518928]
[1719694841775,0.10898668,61141.0,61140.0,0.06528928]
[1719694849281,0.10898668,61141.0,61140.0,0.001024]
[1719694849708,0.36980566,61141.0,61134.0,0.1829]
[1719694849920,0.0767,61135.0,61134.0,0.1829]
[1719694850350,0.0767,61135.0,61132.0,0.1018]
[1719694850488,0.0767,61133.0,61132.0,0.1018]
[1719694850702,0.09299506,61133.0,61132.0,0.1018]
[1719694850902,0.09309506,61133.0,61132.0,0.1018]
[1719694851101,0.11609506,61133.0,61132.0,0.1018]
[1719694851301,0.11609506,61133.0,61131.0,0.000924]
[1719694851565,0.023,61132.0,61131.0,0.000924]
[1719694852072,0.03038188,61132.0,61131.0,0.102724]
[1719694852452,0.03028188,61132.0,61131.0,0.106724]
[1719694852862,0.03028188,61132.0,61131.0,0.102724]
[1719694853068,0.03028188,61132.0,61131.0,0.113724]
[1719694853279,0.03028188,61132.0,61131.0,0.107724]
[1719694853508,0.0229,61132.0,61131.0,0.107724]
[1719694853717,0.0228,61132.0,61131.0,0.107724]
[1719694854380,0.0228,61132.0,61131.0,0.102724]
[1719694854586,0.0228,61132.0,61131.0,0.104724]
[1719694854818,0.0228,61132.0,61131.0,0.107724]
[1719694855933,0.0227,61132.0,61131.0,0.107724]
[1719694856972,0.03008188,61132.0,61131.0,0.107724]
[1719694858004,0.03008188,61132.0,61131.0,0.09933031]
[1719694858598,0.03008188,61132.0,61131.0,0.17953031]
[1719694859162,0.02998188,61132.0,61131.0,0.17953031]
[1719694863288,0.02988188,61132.0,61131.0,0.17953031]
[1719694863486,0.02978188,61132.0,61131.0,0.17953031]
[1719694865847,0.02968188,61132.0,61131.0,0.17953031]
[1719694866086,0.02958188,61132.0,61131.0,0.17953031]
[1719694866246,0.02948188,61132.0,61131.0,0.17953031]
[1719694870567,0.02948188,61132.0,61131.0,0.17963031]
[1719694873580,0.02948188,61132.0,61131.0,0.18055431]
[1719694873783,0.08408188,61132.0,61131.0,0.28392174]
[1719694873992,0.08492188,61132.0,61131.0,0.28392174]
[1719694874202,0.08492188,61132.0,61131.0,0.26396263]
[1719694878364,0.08492188,61132.0,61131.0,0.28392174]
[1719694878570,0.00084,61132.0,61131.0,0.28392174]
[1719694878765,0.07754,61132.0,61131.0,0.28392174]
[1719694878968,0.00084,61132.0,61131.0,0.28392174]
[1719694879162,0.00822754,61132.0,61131.0,0.28392174]
[1719694879363,0.00084,61132.0,61131.0,0.28392174]
[1719694879562,0.00822754,61132.0,61131.0,0.28392174]
[1719694879763,0.00084,61132.0,61131.0,0.28392174]
[1719694879968,0.00084,61132.0,61131.0,0.31977141]
[1719694880373,0.00084,61132.0,61131.0,0.31877141]
[1719694880582,0.00084,61141.0,61140.0,0.28236743]
[1719694880794,0.12511811,61141.0,61140.0,0.29876249]
[1719694880995,0.13246232,61141.0,61140.0,0.29876249]
[1719694881393,0.08488421,61141.0,61140.0,0.29876249]
[1719694881872,0.00818421,61141.0,61140.0,0.29876249]
[1719694882121,0.07754,61141.0,61140.0,0.29876249]
[1719694882563,0.08488421,61141.0,61140.0,0.29876249]
[1719694884239,0.08488421,61141.0,61140.0,0.30276249]
[1719694884438,0.08588421,61141.0,61140.0,0.30276249]
[1719694884855,0.08488421,61141.0,61140.0,0.30276249]
[1719694885061,0.08488421,61141.0,61140.0,0.30676249]
[1719694885463,0.08488421,61141.0,61140.0,0.30276249]
[1719694885670,0.08488421,61141.0,61140.0,0.30576249]
[1719694885830,0.08488421,61141.0,61140.0,0.28936743]
[1719694886028,0.08488421,61141.0,61140.0,0.28536743]
[1719694886437,0.08488421,61141.0,61140.0,0.28736743]
[1719694887457,0.07754,61141.0,61140.0,0.28736743]
[1719694888006,0.08488421,61141.0,61140.0,0.28736743]
[1719694889933,0.00818421,61141.0,61140.0,0.28736743]
[1719694890137,0.08488421,61141.0,61140.0,0.28736743]
[1719694890346,0.07754,61141.0,61140.0,0.28736743]
[1719694890526,0.08488421,61141.0,61140.0,0.28736743]
[1719694899269,0.08488421,61141.0,61140.0,0.26740832]
[1719694899937,0.08488421,61141.0,61140.0,0.27740832]
[1719694900113,0.08488421,61141.0,61140.0,0.28736743]
[1719694901120,0.08488421,61141.0,61140.0,0.26740832]
[1719694901500,0.08488421,61141.0,61140.0,0.28736743]
[1719694902551,0.08488421,61141.0,61140.0,0.26740832]
[1719694913978,0.08488421,61141.0,61140.0,0.28736743]
[1719694917461,0.0848259,61141.0,61140.0,0.28736743]
[1719694917611,0.0848259,61141.0,61140.0,0.28247934]
[1719694921679,0.0848259,61141.0,61140.0,0.25752023]
[1719694921882,0.0858259,61141.0,61140.0,0.25752023]
[1719694922412,0.08519032,61141.0,61140.0,0.25752023]
[1719694923643,0.08519032,61141.0,61140.0,0.25254539]
[1719694924042,0.08519032,61141.0,61140.0,0.0964]
[1719694924252,0.09848407,61141.0,61140.0,0.10336743]
[1719694924658,0.08519032,61141.0,61140.0,0.08340832]
[1719694927355,0.08519032,61141.0,61139.0,0.17850832]
[1719694927568,0.08519032,61141.0,61140.0,0.07728285]
[1719694928174,0.08319032,61141.0,61140.0,0.07728285]
[1719694928592,0.08419032,61141.0,61140.0,0.07728285]
[1719694929953,0.08319032,61141.0,61140.0,0.07728285]
[1719694930174,0.08419032,61141.0,61140.0,0.07728285]
[1719694931137,0.09841407,61141.0,61140.0,0.07728285]
[1719694934662,0.09192375,61141.0,61140.0,0.07728285]
[1719694934839,0.09913194,61141.0,61140.0,0.07728285]
[1719694935277,0.0685661,61141.0,61140.0,0.07728285]
[1719694938352,0.0685661,61141.0,61140.0,0.07820685]
[1719694938599,0.0694061,61141.0,61140.0,0.07820685]
[1719694939668,0.0694061,61141.0,61140.0,0.000924]
[1719694943092,0.0684061,61141.0,61140.0,0.000924]
[1719694943320,0.0684061,61141.0,61140.0,0.001924]
[1719694944607,0.0684061,61141.0,61140.0,0.002924]
[1719694944832,0.34131041,61141.0,61132.0,0.000924]
[1719694945053,0.0767,61133.0,61132.0,0.000924]
[1719694945298,0.10033688,61133.0,61132.0,0.000924]
[1719694945512,0.10033688,61133.0,61128.0,0.11849506]
[1719694945713,0.06441201,61129.0,61128.0,0.11849506]
[1719694946133,0.07166972,61129.0,61128.0,0.11849506]
[1719694947582,0.07266972,61129.0,61128.0,0.11849506]
[1719694948807,0.06239232,61140.0,61128.0,0.1021]
[1719694948934,0.11837,61138.0,61130.0,0.08130346]
[1719694949134,0.0767,61131.0,61130.0,0.08130346]
[1719694949331,0.09309506,61131.0,61130.0,0.08130346]
[1719694950196,0.0767,61131.0,61130.0,0.08230346]
[1719694950450,0.0767,61131.0,61130.0,0.08130346]
[1719694950637,0.0767,61131.0,61130.0,0.08230346]
[1719694950838,0.0787,61131.0,61130.0,0.08230346]
[1719694952374,0.0797,61131.0,61130.0,0.08330346]
[1719694953419,0.0796,61131.0,61130.0,0.08330346]
[1719694957159,0.0796,61131.0,61130.0,0.002]
[1719694957685,0.003,61131.0,61130.0,0.002]
[1719694957886,0.0797,61131.0,61130.0,0.002]
[1719694960228,0.0868746,61131.0,61130.0,0.002]
[1719694961101,0.0868746,61131.0,61130.0,0.0021]
[1719694961729,0.12576701,61131.0,61130.0,0.0021]
[1719694969523,0.12476701,61131.0,61130.0,0.0011]
[1719694969730,0.04906701,61131.0,61130.0,0.0011]
[1719694969967,0.12576701,61131.0,61130.0,0.0954]
[1719694970182,0.12476701,61131.0,61130.0,0.0954]
[1719694970555,0.12476701,61131.0,61130.0,0.1769]
[1719694971590,0.12576701,61131.0,61130.0,0.1779]
[1719694990595,0.36780308,61131.0,61130.0,0.1779]
[1719694993742,0.3678033,61131.0,61130.0,0.1779]
[1719694994066,0.12576701,61131.0,61130.0,0.1779]
[1719694994269,0.3678033,61131.0,61130.0,0.1779]
[1719694996840,0.12576701,61131.0,61130.0,0.1779]
[1719694997046,0.36780391,61131.0,61130.0,0.1779]
[1719694999379,0.36780391,61131.0,61130.0,0.0964]
[1719695000208,0.36779032,61131.0,61130.0,0.0964]
[1719695000831,0.36779032,61131.0,61130.0,0.0021]
[1719695001049,0.36779032,61131.0,61124.0,0.000924]
[1719695001050,0.0199,61128.0,61124.0,0.000924]
[1719695001250,0.0862,61125.0,61124.0,0.000924]
[1719695001381,0.0862,61125.0,61117.0,0.09659506]
[1719695001582,0.0767,61118.0,61115.0,0.0802]
[1719695001787,0.0767,61118.0,61114.0,0.0952]
[1719695001788,0.31852562,61116.0,61114.0,0.0952]
[1719695002215,0.31852562,61116.0,61112.0,0.0802]
[1719695002216,0.31852562,61116.0,61110.0,0.1754]
[1719695002412,0.0766,61113.0,61110.0,0.1754]
[1719695002623,0.0765,61113.0,61110.0,0.1754]
[1719695002836,0.0764,61113.0,61110.0,0.1754]
[1719695003499,0.0764,61113.0,61110.0,0.1764]
[1719695004063,0.0763,61113.0,61110.0,0.1764]
[1719695004871,0.0763,61113.0,61110.0,0.1754]